[Event "*** SCC Grand Prix: Titled Tuesday Blitz"]
[Site "Chess.com"]
[Date "2020.06.09"]
[Round "7"]
[White "Vesper2018"]
[Black "LionTheLeon_06"]
[Result "0-1"]
[WhiteElo "2425"]
[BlackElo "2689"]
[TimeControl "180+1"]
[EndTime "10:17:43 PDT"]
[Termination "LionTheLeon_06 won by checkmate"]

1. e4 {[%clk 0:02:59.6]} 1... c5 {[%clk 0:02:59.6]} 2. Nc3 {[%clk 0:02:59.1]}
2... d6 {[%clk 0:02:59.7]} 3. d4 {[%clk 0:02:54.5]} 3... cxd4 {[%clk 0:02:59.3]}
4. Qxd4 {[%clk 0:02:54.9]} 4... Nc6 {[%clk 0:02:59.9]} 5. Qd2 {[%clk 0:02:55.3]}
5... g6 {[%clk 0:03:00.1]} 6. b3 {[%clk 0:02:55.4]} 6... Bh6 {[%clk 0:03:00]} 7.
f4 {[%clk 0:02:55.3]} 7... Nf6 {[%clk 0:03:00.2]} 8. Bb2 {[%clk 0:02:54.6]} 8...
e5 {[%clk 0:03:00.2]} 9. g3 {[%clk 0:02:47.6]} 9... O-O {[%clk 0:02:59.1]} 10.
O-O-O {[%clk 0:02:45.5]} 10... Bg4 {[%clk 0:02:57.3]} 11. Re1 {[%clk 0:02:36.3]}
11... Rc8 {[%clk 0:02:54.3]} 12. Bd3 {[%clk 0:02:22.2]} 12... Nd4 {[%clk
0:02:51.7]} 13. Kb1 {[%clk 0:02:14.6]} 13... a6 {[%clk 0:02:41.5]} 14. Nd5
{[%clk 0:02:08]} 14... Nxd5 {[%clk 0:02:37.9]} 15. exd5 {[%clk 0:02:07.7]} 15...
Qb6 {[%clk 0:02:15.4]} 16. Qf2 {[%clk 0:01:47.6]} 16... Qc7 {[%clk 0:02:01.8]}
17. c3 {[%clk 0:01:31.1]} 17... Nb5 {[%clk 0:01:52.1]} 18. Rc1 {[%clk 0:01:18]}
18... Bg7 {[%clk 0:01:32.5]} 19. f5 {[%clk 0:01:01.3]} 19... e4 {[%clk 0:01:17]}
20. Bxe4 {[%clk 0:00:32]} 20... Bxc3 {[%clk 0:01:16.3]} 21. a4 {[%clk
0:00:19.7]} 21... Qe7 {[%clk 0:01:15.6]} 22. Bd3 {[%clk 0:00:09.4]} 22... Bxb2
{[%clk 0:01:15.7]} 23. Rxc8 {[%clk 0:00:09.4]} 23... Rxc8 {[%clk 0:01:12]} 24.
axb5 {[%clk 0:00:09.4]} 24... Bg7 {[%clk 0:01:02.6]} 25. Nf3 {[%clk 0:00:07.9]}
25... Bxf3 {[%clk 0:01:00.6]} 26. Qxf3 {[%clk 0:00:08.4]} 26... Qe5 {[%clk
0:01:00.8]} 27. f6 {[%clk 0:00:07.6]} 27... Bxf6 {[%clk 0:01:00.6]} 28. Bc4
{[%clk 0:00:04.4]} 28... Qb2# {[%clk 0:00:59.5]} 0-1

[Event "*** SCC Grand Prix: Titled Tuesday Blitz"]
[Site "Chess.com"]
[Date "2020.06.09"]
[Round "7"]
[White "Gabrielian_Artur"]
[Black "Bathory44"]
[Result "1-0"]
[WhiteElo "2748"]
[BlackElo "2588"]
[TimeControl "180+1"]
[EndTime "10:17:52 PDT"]
[Termination "Gabrielian_Artur won by resignation"]

1. e4 {[%clk 0:03:00.9]} 1... e6 {[%clk 0:02:59.8]} 2. d4 {[%clk 0:02:59.4]}
2... d5 {[%clk 0:03:00.3]} 3. e5 {[%clk 0:02:59]} 3... c5 {[%clk 0:02:59.8]} 4.
c3 {[%clk 0:02:58.9]} 4... Nc6 {[%clk 0:03:00]} 5. Nf3 {[%clk 0:02:58.5]} 5...
Bd7 {[%clk 0:02:59.6]} 6. Be2 {[%clk 0:02:51.7]} 6... Nge7 {[%clk 0:02:57.6]} 7.
Na3 {[%clk 0:02:49]} 7... cxd4 {[%clk 0:02:57.1]} 8. cxd4 {[%clk 0:02:47.1]}
8... Nf5 {[%clk 0:02:56]} 9. Nc2 {[%clk 0:02:47.1]} 9... Qb6 {[%clk 0:02:54.5]}
10. O-O {[%clk 0:02:44.1]} 10... Na5 {[%clk 0:02:51.1]} 11. g4 {[%clk
0:02:36.4]} 11... Ne7 {[%clk 0:02:50.4]} 12. b4 {[%clk 0:02:01]} 12... Nc4
{[%clk 0:02:42.1]} 13. Ne3 {[%clk 0:02:00.4]} 13... h5 {[%clk 0:02:35.2]} 14.
Bxc4 {[%clk 0:01:57.6]} 14... hxg4 {[%clk 0:02:30]} 15. Ne1 {[%clk 0:01:39.1]}
15... Ng6 {[%clk 0:02:09.5]} 16. Be2 {[%clk 0:01:35.5]} 16... Nf4 {[%clk
0:01:49.6]} 17. Bxg4 {[%clk 0:01:33.9]} 17... Bb5 {[%clk 0:01:48.8]} 18. N1g2
{[%clk 0:01:27.4]} 18... Bxf1 {[%clk 0:01:39.4]} 19. Nxf4 {[%clk 0:01:26]} 19...
Bc4 {[%clk 0:01:34.3]} 20. Nxc4 {[%clk 0:01:23.1]} 20... dxc4 {[%clk 0:01:34.2]}
21. Qa4+ {[%clk 0:01:22.8]} 21... Qc6 {[%clk 0:01:29]} 22. Qxc6+ {[%clk
0:01:13.1]} 22... bxc6 {[%clk 0:01:29.9]} 23. Bf3 {[%clk 0:01:11.5]} 23... O-O-O
{[%clk 0:01:28.6]} 24. Be3 {[%clk 0:01:11.2]} 24... g5 {[%clk 0:01:24.9]} 25.
Ne2 {[%clk 0:01:08.9]} 25... Bxb4 {[%clk 0:01:20.9]} 26. Rc1 {[%clk 0:01:08.2]}
26... c5 {[%clk 0:00:57.5]} 27. Rxc4 {[%clk 0:01:07.2]} 27... Kc7 {[%clk
0:00:55.3]} 28. dxc5 {[%clk 0:01:04.5]} 28... Bd2 {[%clk 0:00:55.1]} 29. Ra4
{[%clk 0:00:49.1]} 29... a5 {[%clk 0:00:47.6]} 30. Bxd2 {[%clk 0:00:45.2]} 30...
Rxd2 {[%clk 0:00:48.5]} 31. Rxa5 {[%clk 0:00:45.5]} 31... g4 {[%clk 0:00:46.6]}
32. Ra7+ {[%clk 0:00:41.7]} 32... Kb8 {[%clk 0:00:46.5]} 33. Ra8+ {[%clk
0:00:41.5]} 33... Kc7 {[%clk 0:00:46.7]} 34. Rxh8 {[%clk 0:00:41.2]} 34... gxf3
{[%clk 0:00:46.3]} 35. Ng3 {[%clk 0:00:41.4]} 35... Rxa2 {[%clk 0:00:43.5]} 36.
Rf8 {[%clk 0:00:39]} 36... Kc6 {[%clk 0:00:40.1]} 37. Rxf7 {[%clk 0:00:38.7]}
1-0

[Event "*** SCC Grand Prix: Titled Tuesday Blitz"]
[Site "Chess.com"]
[Date "2020.06.09"]
[Round "7"]
[White "PavelShkapenko"]
[Black "IriBu"]
[Result "1-0"]
[WhiteElo "2682"]
[BlackElo "2528"]
[TimeControl "180+1"]
[EndTime "10:17:52 PDT"]
[Termination "PavelShkapenko won by resignation"]

1. e4 {[%clk 0:02:57.5]} 1... Nf6 {[%clk 0:02:59.4]} 2. e5 {[%clk 0:02:56]} 2...
Nd5 {[%clk 0:02:59.1]} 3. c4 {[%clk 0:02:56.6]} 3... Nb6 {[%clk 0:02:58.7]} 4.
c5 {[%clk 0:02:57.2]} 4... Nd5 {[%clk 0:02:56.3]} 5. Bc4 {[%clk 0:02:57.7]} 5...
e6 {[%clk 0:02:47.8]} 6. d4 {[%clk 0:02:57.3]} 6... b6 {[%clk 0:02:36.4]} 7.
cxb6 {[%clk 0:02:56.5]} 7... cxb6 {[%clk 0:02:33.6]} 8. Ne2 {[%clk 0:02:53.7]}
8... Bb7 {[%clk 0:02:31.5]} 9. O-O {[%clk 0:02:53.4]} 9... d6 {[%clk 0:02:28]}
10. Nbc3 {[%clk 0:02:45.9]} 10... Nxc3 {[%clk 0:02:11.2]} 11. Nxc3 {[%clk
0:02:45.6]} 11... Be7 {[%clk 0:02:07.6]} 12. d5 {[%clk 0:02:33.8]} 12... O-O
{[%clk 0:00:47.6]} 13. dxe6 {[%clk 0:02:31.4]} 13... fxe6 {[%clk 0:00:45.6]} 14.
Bxe6+ {[%clk 0:01:42.7]} 14... Kh8 {[%clk 0:00:44.6]} 15. Qh5 {[%clk 0:01:43.2]}
15... g6 {[%clk 0:00:34.2]} 16. Qe2 {[%clk 0:01:39.3]} 16... dxe5 {[%clk
0:00:33.5]} 17. Bh6 {[%clk 0:01:35.4]} 17... Re8 {[%clk 0:00:19.6]} 18. Bf7
{[%clk 0:01:25]} 18... Bf6 {[%clk 0:00:19.7]} 19. Bxe8 {[%clk 0:01:02.4]} 19...
Qxe8 {[%clk 0:00:20.6]} 20. Ne4 {[%clk 0:01:02.6]} 20... Bg7 {[%clk 0:00:20]}
21. Bxg7+ {[%clk 0:01:02.1]} 21... Kxg7 {[%clk 0:00:19.9]} 22. Nd6 {[%clk
0:01:01.6]} 22... Qe7 {[%clk 0:00:18.5]} 23. Nxb7 {[%clk 0:01:01.4]} 23... Nc6
{[%clk 0:00:18.8]} 24. Rac1 {[%clk 0:00:52.3]} 24... Qxb7 {[%clk 0:00:18.4]} 25.
Qe4 {[%clk 0:00:52.8]} 25... Rc8 {[%clk 0:00:18.3]} 26. Rc3 {[%clk 0:00:49.9]}
26... Qd7 {[%clk 0:00:13.8]} 27. Rfc1 {[%clk 0:00:45.9]} 27... Nd4 {[%clk
0:00:13.2]} 28. Rxc8 {[%clk 0:00:41.5]} 1-0

[Event "*** SCC Grand Prix: Titled Tuesday Blitz"]
[Site "Chess.com"]
[Date "2020.06.09"]
[Round "7"]
[White "CrushingKings"]
[Black "Danesz22"]
[Result "1-0"]
[WhiteElo "2515"]
[BlackElo "2361"]
[TimeControl "180+1"]
[EndTime "10:17:53 PDT"]
[Termination "CrushingKings won by resignation"]

1. e4 {[%clk 0:03:00.9]} 1... b6 {[%clk 0:02:59.8]} 2. d4 {[%clk 0:02:59.2]}
2... Bb7 {[%clk 0:03:00]} 3. Bd3 {[%clk 0:02:59.7]} 3... g6 {[%clk 0:02:59.7]}
4. h4 {[%clk 0:02:57.5]} 4... Bg7 {[%clk 0:02:57.4]} 5. Be3 {[%clk 0:02:57.5]}
5... h6 {[%clk 0:02:57.2]} 6. c3 {[%clk 0:02:55.8]} 6... e6 {[%clk 0:02:56.9]}
7. Nd2 {[%clk 0:02:54.6]} 7... Ne7 {[%clk 0:02:56.9]} 8. f4 {[%clk 0:02:51.1]}
8... d5 {[%clk 0:02:55.8]} 9. e5 {[%clk 0:02:51]} 9... Nd7 {[%clk 0:02:55.5]}
10. h5 {[%clk 0:02:50.3]} 10... a6 {[%clk 0:02:44.6]} 11. hxg6 {[%clk
0:02:44.4]} 11... fxg6 {[%clk 0:02:44.3]} 12. g4 {[%clk 0:02:43.4]} 12... c5
{[%clk 0:02:41.5]} 13. Ngf3 {[%clk 0:02:37.2]} 13... Qc7 {[%clk 0:02:40.9]} 14.
Qc2 {[%clk 0:02:24.1]} 14... cxd4 {[%clk 0:02:33.1]} 15. Bxg6+ {[%clk
0:02:18.4]} 15... Kd8 {[%clk 0:02:28.6]} 16. Nxd4 {[%clk 0:02:18.3]} 16... Nf8
{[%clk 0:02:25.8]} 17. Bf7 {[%clk 0:01:58.5]} 17... Bc8 {[%clk 0:02:24.1]} 18.
O-O-O {[%clk 0:01:53]} 18... b5 {[%clk 0:02:17.2]} 19. Kb1 {[%clk 0:01:52.5]}
19... Rb8 {[%clk 0:02:09]} 20. N2b3 {[%clk 0:01:26.3]} 20... a5 {[%clk
0:01:56.5]} 21. Nc5 {[%clk 0:01:13]} 21... Rb6 {[%clk 0:01:56]} 22. f5 {[%clk
0:01:13]} 22... Qxe5 {[%clk 0:01:52.2]} 23. Ncxe6+ {[%clk 0:01:06.2]} 23... Nxe6
{[%clk 0:01:35.9]} 24. Nxe6+ {[%clk 0:01:05.8]} 24... Rxe6 {[%clk 0:01:35.8]}
25. Bd4 {[%clk 0:01:05.8]} 25... Qe2 {[%clk 0:01:26.9]} 26. Bxg7 {[%clk
0:00:44]} 26... Qxc2+ {[%clk 0:01:21.8]} 27. Kxc2 {[%clk 0:00:44.9]} 27... Re2+
{[%clk 0:01:21.1]} 28. Kd3 {[%clk 0:00:44.9]} 28... Rh7 {[%clk 0:01:21.5]} 29.
Kxe2 {[%clk 0:00:38.5]} 29... Rxg7 {[%clk 0:01:21.8]} 30. Bh5 {[%clk 0:00:37.8]}
30... Rg8 {[%clk 0:00:56.5]} 31. f6 {[%clk 0:00:35.4]} 31... Ng6 {[%clk
0:00:52.8]} 32. Rxd5+ {[%clk 0:00:28.3]} 32... Kc7 {[%clk 0:00:50.5]} 33. Rc5+
{[%clk 0:00:25.7]} 33... Kd6 {[%clk 0:00:48.2]} 34. Rxc8 {[%clk 0:00:25.1]}
34... Nf4+ {[%clk 0:00:46.6]} 35. Kf3 {[%clk 0:00:25.2]} 1-0

[Event "*** SCC Grand Prix: Titled Tuesday Blitz"]
[Site "Chess.com"]
[Date "2020.06.09"]
[Round "7"]
[White "Panterov"]
[Black "TrenerChos"]
[Result "1/2-1/2"]
[WhiteElo "2160"]
[BlackElo "2358"]
[TimeControl "180+1"]
[EndTime "10:17:57 PDT"]
[Termination "Game drawn by repetition"]

1. e4 {[%clk 0:03:00.9]} 1... c5 {[%clk 0:02:52.2]} 2. b3 {[%clk 0:02:59]} 2...
Nc6 {[%clk 0:02:51.5]} 3. Bb2 {[%clk 0:02:58.7]} 3... e6 {[%clk 0:02:51.4]} 4.
g3 {[%clk 0:02:57.7]} 4... Nf6 {[%clk 0:02:50.9]} 5. Bg2 {[%clk 0:02:57.9]} 5...
Be7 {[%clk 0:02:50.2]} 6. Ne2 {[%clk 0:02:57.5]} 6... O-O {[%clk 0:02:50.3]} 7.
O-O {[%clk 0:02:55.3]} 7... Re8 {[%clk 0:02:49.8]} 8. c4 {[%clk 0:02:54.2]} 8...
b6 {[%clk 0:02:44.2]} 9. e5 {[%clk 0:02:48.5]} 9... Ng4 {[%clk 0:02:36.1]} 10.
d4 {[%clk 0:02:38.9]} 10... Bb7 {[%clk 0:02:30.8]} 11. h3 {[%clk 0:02:32.7]}
11... Nh6 {[%clk 0:02:29.2]} 12. d5 {[%clk 0:02:33.1]} 12... exd5 {[%clk
0:02:22.6]} 13. cxd5 {[%clk 0:02:33.5]} 13... Nb4 {[%clk 0:02:21.4]} 14. d6
{[%clk 0:02:33.9]} 14... Bxg2 {[%clk 0:02:19.3]} 15. dxe7 {[%clk 0:02:34.2]}
15... Qxe7 {[%clk 0:02:19.8]} 16. Kxg2 {[%clk 0:02:34.6]} 16... Rad8 {[%clk
0:02:16.9]} 17. Re1 {[%clk 0:02:27.2]} 17... Nc6 {[%clk 0:02:16]} 18. Nf4 {[%clk
0:02:21.6]} 18... Nf5 {[%clk 0:02:15.3]} 19. Qg4 {[%clk 0:02:11.5]} 19... Nfd4
{[%clk 0:02:13.2]} 20. Nd5 {[%clk 0:01:48.2]} 20... Qe6 {[%clk 0:02:09.1]} 21.
Nbc3 {[%clk 0:01:37.8]} 21... Qxg4 {[%clk 0:02:06.9]} 22. hxg4 {[%clk 0:01:38]}
22... Nc2 {[%clk 0:02:06.2]} 23. f4 {[%clk 0:01:34.5]} 23... Nxa1 {[%clk
0:02:04.4]} 24. Bxa1 {[%clk 0:01:32]} 24... d6 {[%clk 0:02:04.6]} 25. Nb5 {[%clk
0:01:29.6]} 25... dxe5 {[%clk 0:02:03.4]} 26. Nbc7 {[%clk 0:01:29.5]} 26... Rf8
{[%clk 0:01:56.8]} 27. Bxe5 {[%clk 0:01:29.7]} 27... Nxe5 {[%clk 0:01:56.1]} 28.
Rxe5 {[%clk 0:01:29.9]} 28... f6 {[%clk 0:01:56.4]} 29. Re6 {[%clk 0:01:23.3]}
29... Rd7 {[%clk 0:01:53.1]} 30. f5 {[%clk 0:01:16]} 30... Rfd8 {[%clk
0:01:51.6]} 31. Kh3 {[%clk 0:01:00.2]} 31... Rxd5 {[%clk 0:01:48.9]} 32. Nxd5
{[%clk 0:00:59.6]} 32... Rxd5 {[%clk 0:01:49.8]} 33. Re7 {[%clk 0:00:57.2]}
33... a5 {[%clk 0:01:44]} 34. Rb7 {[%clk 0:00:56.1]} 34... Rd6 {[%clk
0:01:41.6]} 35. Kh4 {[%clk 0:00:50.1]} 35... g6 {[%clk 0:01:38.2]} 36. fxg6
{[%clk 0:00:47.3]} 36... hxg6 {[%clk 0:01:39.1]} 37. g5 {[%clk 0:00:47.8]} 37...
f5 {[%clk 0:01:35]} 38. g4 {[%clk 0:00:48]} 38... f4 {[%clk 0:01:29.6]} 39. Kh3
{[%clk 0:00:39.5]} 39... Rd3+ {[%clk 0:01:12.3]} 40. Kh4 {[%clk 0:00:39.4]}
40... Rd6 {[%clk 0:01:03.3]} 41. Kh3 {[%clk 0:00:39.6]} 41... Rd3+ {[%clk
0:01:02.7]} 42. Kh4 {[%clk 0:00:39.7]} 42... Rd6 {[%clk 0:01:02.1]} 1/2-1/2

[Event "*** SCC Grand Prix: Titled Tuesday Blitz"]
[Site "Chess.com"]
[Date "2020.06.09"]
[Round "7"]
[White "iaraldinho"]
[Black "GigaQuparadze"]
[Result "0-1"]
[WhiteElo "2628"]
[BlackElo "2833"]
[TimeControl "180+1"]
[EndTime "10:17:58 PDT"]
[Termination "GigaQuparadze won by resignation"]

1. e4 {[%clk 0:03:00.9]} 1... c5 {[%clk 0:02:56.9]} 2. Nf3 {[%clk 0:03:00.7]}
2... Nc6 {[%clk 0:02:56.9]} 3. d4 {[%clk 0:03:00.9]} 3... cxd4 {[%clk
0:02:57.8]} 4. Nxd4 {[%clk 0:03:01.5]} 4... Qb6 {[%clk 0:02:58.4]} 5. Nb3 {[%clk
0:03:00.6]} 5... Nf6 {[%clk 0:02:58.2]} 6. Nc3 {[%clk 0:03:00.5]} 6... e6 {[%clk
0:02:57.6]} 7. Be3 {[%clk 0:03:00.1]} 7... Qc7 {[%clk 0:02:57.8]} 8. Be2 {[%clk
0:02:58.7]} 8... a6 {[%clk 0:02:57.6]} 9. O-O {[%clk 0:02:58.5]} 9... b5 {[%clk
0:02:57.8]} 10. a3 {[%clk 0:02:59]} 10... Ne5 {[%clk 0:02:56.5]} 11. f4 {[%clk
0:02:54]} 11... Nc4 {[%clk 0:02:56.5]} 12. Bxc4 {[%clk 0:02:53.5]} 12... bxc4
{[%clk 0:02:57.4]} 13. Nd4 {[%clk 0:02:52.3]} 13... Bb7 {[%clk 0:02:57.6]} 14.
e5 {[%clk 0:02:52.6]} 14... Nd5 {[%clk 0:02:57.4]} 15. Nxd5 {[%clk 0:02:52.4]}
15... Bxd5 {[%clk 0:02:58.3]} 16. c3 {[%clk 0:02:52.4]} 16... Rb8 {[%clk
0:02:57.4]} 17. Rf2 {[%clk 0:02:49.2]} 17... g6 {[%clk 0:02:57]} 18. Nf3 {[%clk
0:02:32.8]} 18... Bc5 {[%clk 0:02:54.7]} 19. Bxc5 {[%clk 0:02:31.9]} 19... Qxc5
{[%clk 0:02:55.6]} 20. Qd4 {[%clk 0:02:31.9]} 20... Qxd4 {[%clk 0:02:54.8]} 21.
Nxd4 {[%clk 0:02:31]} 21... Ke7 {[%clk 0:02:55.1]} 22. g3 {[%clk 0:02:23]} 22...
Rb7 {[%clk 0:02:54.7]} 23. Kf1 {[%clk 0:02:22]} 23... Rhb8 {[%clk 0:02:54.2]}
24. Ra2 {[%clk 0:02:22.4]} 24... Be4 {[%clk 0:02:54.2]} 25. Ke1 {[%clk
0:01:40.6]} 25... Bb1 {[%clk 0:02:52.9]} 26. Ra1 {[%clk 0:01:40.9]} 26... Rxb2
{[%clk 0:02:52.8]} 27. Nf3 {[%clk 0:01:30.4]} 27... Rxf2 {[%clk 0:02:39.3]} 28.
Kxf2 {[%clk 0:01:29.6]} 28... Rb2+ {[%clk 0:02:39.9]} 29. Ke3 {[%clk 0:01:29.5]}
29... Bd3 {[%clk 0:02:40.3]} 30. Nd2 {[%clk 0:01:27.6]} 30... Rc2 {[%clk
0:02:40.3]} 31. a4 {[%clk 0:01:23.1]} 31... Rxc3 {[%clk 0:02:38.5]} 32. Kd4
{[%clk 0:01:21.9]} 32... Rc2 {[%clk 0:02:38.6]} 33. Ke3 {[%clk 0:01:22.1]} 33...
c3 {[%clk 0:02:36.7]} 34. Kxd3 {[%clk 0:01:14.5]} 34... Rxd2+ {[%clk 0:02:35.2]}
35. Kxc3 {[%clk 0:01:15.4]} 35... Rxh2 {[%clk 0:02:35.9]} 36. Kb4 {[%clk
0:01:15.1]} 36... Rc2 {[%clk 0:02:31.1]} 37. Ka5 {[%clk 0:01:10.6]} 37... Rc6
{[%clk 0:02:28]} 38. g4 {[%clk 0:01:10.3]} 38... d6 {[%clk 0:02:03.3]} 39. exd6+
{[%clk 0:01:11.2]} 39... Kxd6 {[%clk 0:02:03.4]} 40. Rd1+ {[%clk 0:01:10.7]}
40... Ke7 {[%clk 0:02:02.5]} 41. Rh1 {[%clk 0:01:09.8]} 41... Rc4 {[%clk
0:02:02.6]} 42. Rf1 {[%clk 0:01:07.1]} 42... f5 {[%clk 0:01:59.1]} 43. gxf5
{[%clk 0:01:04.8]} 43... exf5 {[%clk 0:01:57.6]} 44. Rh1 {[%clk 0:01:04]} 44...
h5 {[%clk 0:01:56.3]} 45. Ra1 {[%clk 0:00:58.7]} 45... Rc6 {[%clk 0:01:49.1]}
46. Ra2 {[%clk 0:00:52.8]} 46... Kf6 {[%clk 0:01:47.9]} 47. Ra1 {[%clk
0:00:52.8]} 47... g5 {[%clk 0:01:46.8]} 48. fxg5+ {[%clk 0:00:52.6]} 48... Kxg5
{[%clk 0:01:47.7]} 49. Rg1+ {[%clk 0:00:52]} 49... Kh6 {[%clk 0:01:46.5]} 50.
Rf1 {[%clk 0:00:50.7]} 50... Rf6 {[%clk 0:01:44.2]} 51. Kb4 {[%clk 0:00:48]}
51... Kg5 {[%clk 0:01:41.5]} 52. Kc5 {[%clk 0:00:48.1]} 52... h4 {[%clk
0:01:41.4]} 53. Rg1+ {[%clk 0:00:47.8]} 53... Kf4 {[%clk 0:01:41]} 54. Rf1+
{[%clk 0:00:42.6]} 54... Kg3 {[%clk 0:01:39.6]} 55. Kd5 {[%clk 0:00:42.7]} 55...
h3 {[%clk 0:01:36.5]} 56. Ke5 {[%clk 0:00:42.3]} 56... Rc6 {[%clk 0:01:36]} 57.
Rg1+ {[%clk 0:00:37.2]} 57... Kf2 {[%clk 0:01:35.6]} 58. Rg8 {[%clk 0:00:35.1]}
58... Rh6 {[%clk 0:01:35.3]} 0-1

[Event "*** SCC Grand Prix: Titled Tuesday Blitz"]
[Site "Chess.com"]
[Date "2020.06.09"]
[Round "7"]
[White "GM_LOADING"]
[Black "PowerThinking2650"]
[Result "1-0"]
[WhiteElo "2493"]
[BlackElo "2332"]
[TimeControl "180+1"]
[EndTime "10:17:59 PDT"]
[Termination "GM_LOADING won by resignation"]

1. e4 {[%clk 0:03:00.9]} 1... e5 {[%clk 0:02:58.8]} 2. Nf3 {[%clk 0:03:01.2]}
2... Nc6 {[%clk 0:02:58.9]} 3. Bc4 {[%clk 0:03:01.8]} 3... Nf6 {[%clk
0:02:58.1]} 4. d3 {[%clk 0:03:01.9]} 4... h6 {[%clk 0:02:56.9]} 5. O-O {[%clk
0:03:02.4]} 5... g5 {[%clk 0:02:51.5]} 6. d4 {[%clk 0:03:02.2]} 6... exd4 {[%clk
0:02:29.7]} 7. e5 {[%clk 0:03:00.4]} 7... d5 {[%clk 0:02:27.9]} 8. Bb5 {[%clk
0:02:57.5]} 8... Ne4 {[%clk 0:02:26.7]} 9. Nxd4 {[%clk 0:02:54.4]} 9... Bd7
{[%clk 0:02:26.2]} 10. Bxc6 {[%clk 0:02:21.3]} 10... bxc6 {[%clk 0:02:27.1]} 11.
Nc3 {[%clk 0:02:05.8]} 11... Nxc3 {[%clk 0:01:34.2]} 12. bxc3 {[%clk 0:02:06.7]}
12... c5 {[%clk 0:01:22.8]} 13. Nb3 {[%clk 0:02:00.4]} 13... c4 {[%clk
0:01:10.4]} 14. Na5 {[%clk 0:01:27.8]} 14... Rb8 {[%clk 0:00:34.6]} 15. e6
{[%clk 0:01:16.6]} 15... Bxe6 {[%clk 0:00:24.6]} 16. Nc6 {[%clk 0:01:15.8]}
16... Qc8 {[%clk 0:00:24.5]} 17. Nxb8 {[%clk 0:01:16.4]} 17... Qxb8 {[%clk
0:00:25.1]} 18. Be3 {[%clk 0:01:10.7]} 18... Bd6 {[%clk 0:00:22]} 19. Rb1 {[%clk
0:01:06.4]} 19... Qa8 {[%clk 0:00:21.5]} 20. Qd4 {[%clk 0:01:03]} 20... O-O
{[%clk 0:00:15.5]} 21. f4 {[%clk 0:01:02.9]} 21... gxf4 {[%clk 0:00:14.7]} 22.
Bxf4 {[%clk 0:01:00.5]} 22... Kh7 {[%clk 0:00:13.1]} 23. Bxd6 {[%clk 0:00:59.8]}
23... cxd6 {[%clk 0:00:13.9]} 24. Rf6 {[%clk 0:00:58.5]} 24... Rg8 {[%clk
0:00:13.6]} 25. Qf4 {[%clk 0:00:55]} 25... Qf8 {[%clk 0:00:12.7]} 26. Rb7 {[%clk
0:00:53.5]} 26... Rg7 {[%clk 0:00:11]} 27. Rxh6+ {[%clk 0:00:44.1]} 27... Kg8
{[%clk 0:00:10.2]} 28. Qh4 {[%clk 0:00:44.1]} 1-0

[Event "*** SCC Grand Prix: Titled Tuesday Blitz"]
[Site "Chess.com"]
[Date "2020.06.09"]
[Round "7"]
[White "Kolle05"]
[Black "Vision_64"]
[Result "1-0"]
[WhiteElo "2368"]
[BlackElo "2154"]
[TimeControl "180+1"]
[EndTime "10:18:01 PDT"]
[Termination "Kolle05 won by checkmate"]

1. e4 {[%clk 0:03:00.9]} 1... c5 {[%clk 0:03:00.1]} 2. Nf3 {[%clk 0:03:00.8]}
2... Nc6 {[%clk 0:03:00.7]} 3. d4 {[%clk 0:03:00.7]} 3... cxd4 {[%clk
0:03:01.6]} 4. Nxd4 {[%clk 0:03:01.3]} 4... Nf6 {[%clk 0:03:02]} 5. Nc3 {[%clk
0:03:00.9]} 5... e5 {[%clk 0:03:02.3]} 6. Ndb5 {[%clk 0:03:00.8]} 6... d6 {[%clk
0:03:01.4]} 7. Bg5 {[%clk 0:03:00.7]} 7... a6 {[%clk 0:03:01.6]} 8. Na3 {[%clk
0:03:00.1]} 8... b5 {[%clk 0:03:01.9]} 9. Nd5 {[%clk 0:03:00.2]} 9... Be7 {[%clk
0:03:00.6]} 10. Bxf6 {[%clk 0:03:00.3]} 10... Bxf6 {[%clk 0:03:00.3]} 11. c3
{[%clk 0:03:00.8]} 11... O-O {[%clk 0:02:51.1]} 12. h4 {[%clk 0:03:00.5]} 12...
Be6 {[%clk 0:02:42.4]} 13. Nc2 {[%clk 0:02:59.9]} 13... Bxd5 {[%clk 0:02:42.6]}
14. Qxd5 {[%clk 0:02:43.9]} 14... Ne7 {[%clk 0:02:13.5]} 15. Qd3 {[%clk
0:02:42]} 15... d5 {[%clk 0:02:02.3]} 16. O-O-O {[%clk 0:02:40.6]} 16... dxe4
{[%clk 0:01:57.4]} 17. Qxe4 {[%clk 0:02:41.5]} 17... Qb6 {[%clk 0:01:53.8]} 18.
Bd3 {[%clk 0:02:36.9]} 18... g6 {[%clk 0:01:46.3]} 19. h5 {[%clk 0:02:37]} 19...
Bg5+ {[%clk 0:01:26.1]} 20. Kb1 {[%clk 0:02:35.8]} 20... Qe6 {[%clk 0:01:14.1]}
21. hxg6 {[%clk 0:02:33.7]} 21... fxg6 {[%clk 0:01:11.8]} 22. Nd4 {[%clk
0:02:17.2]} 22... Qf6 {[%clk 0:00:55.2]} 23. Nf3 {[%clk 0:02:04.4]} 23... Rad8
{[%clk 0:00:46]} 24. Bc2 {[%clk 0:02:02.3]} 24... Bf4 {[%clk 0:00:40.5]} 25.
Bb3+ {[%clk 0:01:54]} 25... Kg7 {[%clk 0:00:37.7]} 26. Rxd8 {[%clk 0:01:52.9]}
26... Rxd8 {[%clk 0:00:37.4]} 27. g3 {[%clk 0:01:52.7]} 27... Bg5 {[%clk
0:00:29.2]} 28. Nxe5 {[%clk 0:01:32.9]} 28... Qxf2 {[%clk 0:00:27.4]} 29. Nf7
{[%clk 0:01:04.9]} 29... Rd2 {[%clk 0:00:22.3]} 30. Nxg5 {[%clk 0:01:02]} 30...
Rxb2+ {[%clk 0:00:19.8]} 31. Ka1 {[%clk 0:01:02.2]} 31... Re2 {[%clk 0:00:11.3]}
32. Rxh7+ {[%clk 0:00:51.8]} 32... Kf6 {[%clk 0:00:11.6]} 33. Rf7+ {[%clk
0:00:49.8]} 33... Kxg5 {[%clk 0:00:11.4]} 34. Qh4# {[%clk 0:00:50.7]} 1-0